[Event "*** Titled Tuesday 3|2 Blitz"]
[Site "Chess.com"]
[Date "2016.02.02"]
[Round "1"]
[White "lorcho"]
[Black "Sawyer2908"]
[Result "1-0"]
[WhiteElo "2582"]
[BlackElo "2280"]
[TimeControl "180+2"]
[EndTime "11:07:22 PST"]
[Termination "lorcho won by resignation"]

1. e4 {[%clk 0:02:55.9]} 1... c5 {[%clk 0:02:58.6]} 2. Nc3 {[%clk 0:02:56.1]}
2... a6 {[%clk 0:02:57.7]} 3. a4 {[%clk 0:02:54.9]} 3... Nc6 {[%clk 0:02:57]} 4.
g3 {[%clk 0:02:56.2]} 4... g6 {[%clk 0:02:57.4]} 5. Bg2 {[%clk 0:02:57.5]} 5...
Bg7 {[%clk 0:02:58.3]} 6. d3 {[%clk 0:02:58.8]} 6... d6 {[%clk 0:02:58.1]} 7. f4
{[%clk 0:02:59.9]} 7... e6 {[%clk 0:02:58]} 8. Nf3 {[%clk 0:03:00.8]} 8... Nge7
{[%clk 0:02:58.8]} 9. O-O {[%clk 0:03:01.9]} 9... Nd4 {[%clk 0:02:59]} 10. e5
{[%clk 0:03:01]} 10... Nxf3+ {[%clk 0:02:50.5]} 11. Qxf3 {[%clk 0:03:01.3]}
11... d5 {[%clk 0:02:50.1]} 12. Be3 {[%clk 0:02:43.7]} 12... d4 {[%clk
0:02:34.2]} 13. Ne4 {[%clk 0:02:43]} 13... dxe3 {[%clk 0:02:32.7]} 14. Nd6+
{[%clk 0:02:44.4]} 14... Kf8 {[%clk 0:02:33.3]} 15. Qxe3 {[%clk 0:02:45.6]}
15... Qc7 {[%clk 0:02:25]} 16. g4 {[%clk 0:02:38.1]} 16... Bd7 {[%clk
0:02:20.9]} 17. Bxb7 {[%clk 0:02:26]} 17... Rb8 {[%clk 0:02:06.8]} 18. Bxa6
{[%clk 0:02:26.8]} 18... Nd5 {[%clk 0:02:07.5]} 19. Qd2 {[%clk 0:02:18.4]} 19...
Ke7 {[%clk 0:01:56.6]} 20. Bb5 {[%clk 0:02:11.7]} 20... f6 {[%clk 0:01:55.8]}
21. Rae1 {[%clk 0:01:54.1]} 21... Rhf8 {[%clk 0:01:48.7]} 22. Nc4 {[%clk
0:01:46.2]} 22... Bxb5 {[%clk 0:01:44.6]} 23. axb5 {[%clk 0:01:48]} 23... Rxb5
{[%clk 0:01:40.6]} 24. exf6+ {[%clk 0:01:47.2]} 24... Bxf6 {[%clk 0:01:37.7]}
25. f5 {[%clk 0:01:43.9]} 25... gxf5 {[%clk 0:01:25.3]} 26. Rxf5 {[%clk
0:01:44.1]} 26... Qc6 {[%clk 0:00:50.4]} 27. c3 {[%clk 0:01:40.2]} 27... Rbb8
{[%clk 0:00:46.2]} 28. Qh6 {[%clk 0:01:33.2]} 28... Rf7 {[%clk 0:00:43.6]} 29.
Qh5 {[%clk 0:01:17.2]} 29... Bd4+ {[%clk 0:00:20]} 30. cxd4 {[%clk 0:01:16.5]}
30... Rxf5 {[%clk 0:00:21]} 31. Qxf5 {[%clk 0:01:15.6]} 31... Rf8 {[%clk
0:00:16.3]} 32. Qxh7+ {[%clk 0:01:15.7]} 32... Rf7 {[%clk 0:00:17.4]} 33. Qxf7+
{[%clk 0:01:15.6]} 1-0

[Event "*** Titled Tuesday 3|2 Blitz"]
[Site "Chess.com"]
[Date "2016.02.02"]
[Round "1"]
[White "manubibi"]
[Black "AungTZ"]
[Result "0-1"]
[WhiteElo "2422"]
[BlackElo "2100"]
[TimeControl "180+2"]
[EndTime "11:07:53 PST"]
[Termination "AungTZ won by resignation"]

1. e4 {[%clk 0:03:00]} 1... c5 {[%clk 0:03:00.3]} 2. Nf3 {[%clk 0:03:00.2]} 2...
Nc6 {[%clk 0:02:59.8]} 3. Bb5 {[%clk 0:03:00.5]} 3... e6 {[%clk 0:03:00.2]} 4.
b3 {[%clk 0:02:59.2]} 4... Nge7 {[%clk 0:02:59]} 5. Bb2 {[%clk 0:02:58.7]} 5...
a6 {[%clk 0:02:59.4]} 6. Bxc6 {[%clk 0:02:59.5]} 6... Nxc6 {[%clk 0:02:56.8]} 7.
O-O {[%clk 0:03:00.9]} 7... d6 {[%clk 0:02:57.2]} 8. d4 {[%clk 0:03:00.2]} 8...
cxd4 {[%clk 0:02:57.4]} 9. Nxd4 {[%clk 0:03:01.4]} 9... Bd7 {[%clk 0:02:57.3]}
10. f4 {[%clk 0:03:00.4]} 10... Be7 {[%clk 0:02:56.1]} 11. f5 {[%clk 0:02:50.9]}
11... O-O {[%clk 0:02:47.9]} 12. Nd2 {[%clk 0:02:32.1]} 12... Qb6 {[%clk
0:02:34]} 13. Nc4 {[%clk 0:02:31.7]} 13... Qa7 {[%clk 0:02:31.1]} 14. Kh1 {[%clk
0:02:28.7]} 14... Rad8 {[%clk 0:02:05.1]} 15. f6 {[%clk 0:02:26.5]} 15... gxf6
{[%clk 0:01:45]} 16. Rxf6 {[%clk 0:02:19.8]} 16... e5 {[%clk 0:01:27.7]} 17.
Nxc6 {[%clk 0:01:58.2]} 17... Bxc6 {[%clk 0:01:27.4]} 18. Qg4+ {[%clk
0:01:52.2]} 18... Kh8 {[%clk 0:01:27.2]} 19. Nxe5 {[%clk 0:01:16.6]} 19... Bxf6
{[%clk 0:01:16.3]} 20. Nxc6 {[%clk 0:00:54]} 20... Bxb2 {[%clk 0:01:15.6]} 21.
Nxa7 {[%clk 0:00:55.6]} 21... Bxa1 {[%clk 0:01:16.1]} 22. Qd1 {[%clk 0:00:57.2]}
22... Be5 {[%clk 0:01:13.2]} 23. Qd5 {[%clk 0:00:56.2]} 23... Rd7 {[%clk
0:01:06.4]} 24. c4 {[%clk 0:00:53.2]} 24... f5 {[%clk 0:00:54.2]} 25. g3 {[%clk
0:00:52]} 25... f4 {[%clk 0:00:44.5]} 26. gxf4 {[%clk 0:00:51.5]} 26... Rxf4
{[%clk 0:00:35.2]} 27. Qd3 {[%clk 0:00:26]} 27... Rg7 {[%clk 0:00:34]} 28. Nc8
{[%clk 0:00:22.9]} 28... Rf2 {[%clk 0:00:33.3]} 29. Qh3 {[%clk 0:00:19.9]} 29...
Rxa2 {[%clk 0:00:22.7]} 30. Ne7 {[%clk 0:00:13.7]} 30... Ra1+ {[%clk 0:00:22.4]}
0-1

[Event "*** Titled Tuesday 3|2 Blitz"]
[Site "Chess.com"]
[Date "2016.02.02"]
[Round "1"]
[White "HansCoolNiemann"]
[Black "kpio91"]
[Result "1-0"]
[WhiteElo "2219"]
[BlackElo "2524"]
[TimeControl "180+2"]
[EndTime "11:08:00 PST"]
[Termination "HansCoolNiemann won by resignation"]

1. d4 {[%clk 0:02:56.1]} 1... Nf6 {[%clk 0:02:59]} 2. c4 {[%clk 0:02:56.1]} 2...
Nc6 {[%clk 0:03:00.1]} 3. Nc3 {[%clk 0:02:50.7]} 3... e5 {[%clk 0:03:01]} 4. d5
{[%clk 0:02:50.2]} 4... Nd4 {[%clk 0:03:02.1]} 5. e3 {[%clk 0:02:43]} 5... Nf5
{[%clk 0:03:02.6]} 6. Nf3 {[%clk 0:02:39.3]} 6... d6 {[%clk 0:03:03.3]} 7. e4
{[%clk 0:02:33.5]} 7... Ne7 {[%clk 0:03:01.3]} 8. h4 {[%clk 0:02:20.7]} 8... h5
{[%clk 0:02:57.5]} 9. Bg5 {[%clk 0:02:19.3]} 9... Ng6 {[%clk 0:02:58.5]} 10. g3
{[%clk 0:02:19.2]} 10... Be7 {[%clk 0:02:59.3]} 11. Be2 {[%clk 0:02:19.1]} 11...
Ng4 {[%clk 0:02:57]} 12. Bxe7 {[%clk 0:02:18.9]} 12... Qxe7 {[%clk 0:02:56.6]}
13. Nd2 {[%clk 0:02:16.5]} 13... Nf8 {[%clk 0:02:50.1]} 14. b4 {[%clk
0:02:07.5]} 14... Nh7 {[%clk 0:02:42.8]} 15. Nb3 {[%clk 0:02:02]} 15... f5
{[%clk 0:02:42.1]} 16. c5 {[%clk 0:01:44.5]} 16... O-O {[%clk 0:02:40.7]} 17.
Qd2 {[%clk 0:01:08.5]} 17... f4 {[%clk 0:02:29.3]} 18. gxf4 {[%clk 0:01:01.4]}
18... Rxf4 {[%clk 0:02:28.3]} 19. f3 {[%clk 0:01:01.6]} 19... Nh6 {[%clk
0:02:29.4]} 20. O-O-O {[%clk 0:01:01.7]} 20... Rxh4 {[%clk 0:02:29.9]} 21. Rxh4
{[%clk 0:00:56.9]} 21... Qxh4 {[%clk 0:02:29.5]} 22. Rg1 {[%clk 0:00:56.9]}
22... Nf7 {[%clk 0:02:24.6]} 23. Nb5 {[%clk 0:00:31.5]} 23... Qe7 {[%clk
0:02:17.4]} 24. f4 {[%clk 0:00:14.7]} 24... a6 {[%clk 0:02:06.2]} 25. Nc3 {[%clk
0:00:12.3]} 25... exf4 {[%clk 0:01:59.2]} 26. Bxh5 {[%clk 0:00:12]} 26... Ne5
{[%clk 0:01:55.1]} 27. Kc2 {[%clk 0:00:10.8]} 27... Qf6 {[%clk 0:01:52.2]} 28.
Nd4 {[%clk 0:00:09]} 28... Bd7 {[%clk 0:01:45.8]} 29. Rf1 {[%clk 0:00:09.5]}
29... Rf8 {[%clk 0:01:44.7]} 30. Nce2 {[%clk 0:00:10.2]} 30... g5 {[%clk
0:01:40.1]} 31. Rg1 {[%clk 0:00:10.4]} 31... Qh6 {[%clk 0:01:36.2]} 32. Bf3
{[%clk 0:00:09.2]} 32... Qg6 {[%clk 0:01:28.4]} 33. Nxf4 {[%clk 0:00:09.2]}
33... Rf5 {[%clk 0:01:28.9]} 34. exf5 {[%clk 0:00:08.3]} 34... Bxf5+ {[%clk
0:01:27.6]} 35. Kb2 {[%clk 0:00:07.8]} 35... Qf6 {[%clk 0:01:26.3]} 36. Qc3
{[%clk 0:00:06.1]} 36... Kh8 {[%clk 0:01:24.4]} 37. Nh5 {[%clk 0:00:06]} 37...
Qh6 {[%clk 0:01:22.7]} 38. Nxf5 {[%clk 0:00:06.8]} 38... Qf8 {[%clk 0:01:22.7]}
39. Be4 {[%clk 0:00:07.2]} 1-0

[Event "*** Titled Tuesday 3|2 Blitz"]
[Site "Chess.com"]
[Date "2016.02.02"]
[Round "1"]
[White "alturas_pacificas"]
[Black "tigra"]
[Result "0-1"]
[WhiteElo "2019"]
[BlackElo "2357"]
[TimeControl "180+2"]
[EndTime "11:08:06 PST"]
[Termination "tigra won by resignation"]

1. d4 {[%clk 0:02:51.3]} 1... d5 {[%clk 0:03:00.5]} 2. Bf4 {[%clk 0:02:50.5]}
2... Nf6 {[%clk 0:02:54.9]} 3. e3 {[%clk 0:02:51.3]} 3... c5 {[%clk 0:02:55.1]}
4. c3 {[%clk 0:02:51.9]} 4... Nc6 {[%clk 0:02:55.5]} 5. Nd2 {[%clk 0:02:52.5]}
5... g6 {[%clk 0:02:46.9]} 6. Ngf3 {[%clk 0:02:52.4]} 6... Qb6 {[%clk
0:02:44.3]} 7. Qb3 {[%clk 0:02:51.3]} 7... c4 {[%clk 0:02:42.4]} 8. Qxb6 {[%clk
0:02:51.7]} 8... axb6 {[%clk 0:02:43.1]} 9. a3 {[%clk 0:02:53.6]} 9... b5 {[%clk
0:02:43.6]} 10. Rc1 {[%clk 0:02:54.1]} 10... Bg7 {[%clk 0:02:34.8]} 11. h3
{[%clk 0:02:54.6]} 11... O-O {[%clk 0:02:35.3]} 12. Ne5 {[%clk 0:02:55.8]} 12...
Nd7 {[%clk 0:02:34.6]} 13. Nxd7 {[%clk 0:02:51]} 13... Bxd7 {[%clk 0:02:35.5]}
14. Be2 {[%clk 0:02:35.1]} 14... e6 {[%clk 0:02:30.8]} 15. O-O {[%clk
0:02:30.6]} 15... h6 {[%clk 0:02:31.4]} 16. e4 {[%clk 0:02:20.2]} 16... e5
{[%clk 0:02:22.8]} 17. dxe5 {[%clk 0:02:04.1]} 17... d4 {[%clk 0:02:23.3]} 18.
cxd4 {[%clk 0:01:41.8]} 18... Nxd4 {[%clk 0:02:23.7]} 19. Rfe1 {[%clk
0:01:25.2]} 19... Rfe8 {[%clk 0:02:11.7]} 20. Nf3 {[%clk 0:01:24.6]} 20... Nxf3+
{[%clk 0:02:09.2]} 21. Bxf3 {[%clk 0:01:24.7]} 21... g5 {[%clk 0:02:07.8]} 22.
Bg3 {[%clk 0:01:24.4]} 22... Bxe5 {[%clk 0:02:08.3]} 23. Bxe5 {[%clk 0:01:25.8]}
23... Rxe5 {[%clk 0:02:10]} 24. Rcd1 {[%clk 0:01:15.2]} 24... Bc6 {[%clk
0:02:10.7]} 25. Rd6 {[%clk 0:00:49.3]} 25... Kg7 {[%clk 0:02:10.7]} 26. Bg4
{[%clk 0:00:47.8]} 26... Rae8 {[%clk 0:02:04.9]} 27. Bd7 {[%clk 0:00:38]} 27...
Rd8 {[%clk 0:02:03.9]} 28. Red1 {[%clk 0:00:37.4]} 28... Bxe4 {[%clk 0:01:58.3]}
29. f3 {[%clk 0:00:36]} 29... Bd3 {[%clk 0:01:57.7]} 30. R1xd3 {[%clk 0:00:23]}
30... cxd3 {[%clk 0:01:57.7]} 31. Rxd3 {[%clk 0:00:24.9]} 31... Re1+ {[%clk
0:01:24.3]} 32. Kh2 {[%clk 0:00:21.4]} 32... Rb1 {[%clk 0:01:24]} 33. b4 {[%clk
0:00:20.8]} 33... Ra1 {[%clk 0:01:24.7]} 34. Bxb5 {[%clk 0:00:21.6]} 34... Rxd3
{[%clk 0:01:24.3]} 35. Bxd3 {[%clk 0:00:23.5]} 35... Rxa3 {[%clk 0:01:25.5]} 36.
Be4 {[%clk 0:00:25.1]} 36... b6 {[%clk 0:01:24.8]} 37. b5 {[%clk 0:00:25.8]}
37... Rb3 {[%clk 0:01:25.6]} 38. Bc6 {[%clk 0:00:27.1]} 38... f5 {[%clk
0:01:26.5]} 39. Kg3 {[%clk 0:00:27.8]} 39... Kf6 {[%clk 0:01:26.7]} 40. h4
{[%clk 0:00:29]} 40... f4+ {[%clk 0:01:24.8]} 41. Kh3 {[%clk 0:00:29.9]} 41...
Rb1 {[%clk 0:01:24]} 42. hxg5+ {[%clk 0:00:30.8]} 42... hxg5 {[%clk 0:01:24.4]}
43. g3 {[%clk 0:00:30.4]} 43... Rg1 {[%clk 0:01:23.7]} 44. gxf4 {[%clk
0:00:30.7]} 44... gxf4 {[%clk 0:01:24.1]} 45. Kh4 {[%clk 0:00:31.8]} 45... Rg3
{[%clk 0:01:23.9]} 46. Kh5 {[%clk 0:00:32.2]} 46... Ke5 {[%clk 0:01:25.5]} 47.
Kh4 {[%clk 0:00:33.6]} 47... Kd4 {[%clk 0:01:27.1]} 48. Kh5 {[%clk 0:00:28.3]}
48... Ke3 {[%clk 0:01:28.5]} 49. Kh4 {[%clk 0:00:29.8]} 49... Rxf3 {[%clk
0:01:28.7]} 0-1

[Event "*** Titled Tuesday 3|2 Blitz"]
[Site "Chess.com"]
[Date "2016.02.02"]
[Round "1"]
[White "DanielRensch"]
[Black "Grootneus"]
[Result "1-0"]
[WhiteElo "2356"]
[BlackElo "2004"]
[TimeControl "180+2"]
[EndTime "11:08:12 PST"]
[Termination "DanielRensch won by checkmate"]

1. e4 {[%clk 0:02:22.8]} 1... c5 {[%clk 0:02:54.3]} 2. Nf3 {[%clk 0:02:21.4]}
2... Nc6 {[%clk 0:02:54.6]} 3. d4 {[%clk 0:02:21]} 3... cxd4 {[%clk 0:02:55.8]}
4. Nxd4 {[%clk 0:02:19.4]} 4... Nf6 {[%clk 0:02:57.3]} 5. Nc3 {[%clk 0:02:17.8]}
5... e5 {[%clk 0:02:57.7]} 6. Ndb5 {[%clk 0:02:17.9]} 6... d6 {[%clk 0:02:57.9]}
7. Bg5 {[%clk 0:02:17.6]} 7... a6 {[%clk 0:02:59.1]} 8. Na3 {[%clk 0:02:17.5]}
8... b5 {[%clk 0:03:00.2]} 9. Bxf6 {[%clk 0:02:17.9]} 9... gxf6 {[%clk
0:03:02.1]} 10. Nd5 {[%clk 0:02:17.7]} 10... f5 {[%clk 0:03:03.8]} 11. Bd3
{[%clk 0:01:57.4]} 11... Be6 {[%clk 0:03:01.7]} 12. O-O {[%clk 0:01:55.8]} 12...
Bg7 {[%clk 0:02:51.4]} 13. c4 {[%clk 0:01:50.6]} 13... b4 {[%clk 0:02:37.6]} 14.
Nc2 {[%clk 0:01:50.8]} 14... O-O {[%clk 0:02:38.5]} 15. exf5 {[%clk 0:01:47.7]}
15... Bxd5 {[%clk 0:02:36]} 16. cxd5 {[%clk 0:01:48.1]} 16... Ne7 {[%clk
0:02:33.6]} 17. Qg4 {[%clk 0:01:43.4]} 17... Nxd5 {[%clk 0:02:27.6]} 18. Nxb4
{[%clk 0:01:41.6]} 18... Nf4 {[%clk 0:02:09.9]} 19. Be4 {[%clk 0:01:32.3]} 19...
h5 {[%clk 0:01:51.2]} 20. Qf3 {[%clk 0:01:08.7]} 20... Rc8 {[%clk 0:01:50.7]}
21. Rad1 {[%clk 0:00:59.2]} 21... Qa5 {[%clk 0:01:39.7]} 22. Nd5 {[%clk
0:00:33.9]} 22... Qxa2 {[%clk 0:00:57.1]} 23. Ne7+ {[%clk 0:00:20.5]} 23... Kh8
{[%clk 0:00:57.9]} 24. g3 {[%clk 0:00:22]} 24... d5 {[%clk 0:00:17.3]} 25. gxf4
{[%clk 0:00:20.5]} 25... Bf6 {[%clk 0:00:15.3]} 26. Qxh5+ {[%clk 0:00:19.7]}
26... Kg7 {[%clk 0:00:16]} 27. Nxd5 {[%clk 0:00:17.4]} 27... Rg8 {[%clk
0:00:13.1]} 28. Kh1 {[%clk 0:00:17.6]} 28... Bd8 {[%clk 0:00:11.3]} 29. fxe5
{[%clk 0:00:17.1]} 29... Rc4 {[%clk 0:00:11.3]} 30. f6+ {[%clk 0:00:17.6]} 30...
Kf8 {[%clk 0:00:12.3]} 31. e6 {[%clk 0:00:14.5]} 31... Rxe4 {[%clk 0:00:12.5]}
32. Qxf7# {[%clk 0:00:14.2]} 1-0

[Event "*** Titled Tuesday 3|2 Blitz"]
[Site "Chess.com"]
[Date "2016.02.02"]
[Round "1"]
[White "AndroQueen"]
[Black "rikyshi"]
[Result "0-1"]
[WhiteElo "2393"]
[BlackElo "2063"]
[TimeControl "180+2"]
[EndTime "11:08:15 PST"]
[Termination "rikyshi won by resignation"]

1. e4 {[%clk 0:02:44.9]} 1... e6 {[%clk 0:02:59.4]} 2. d4 {[%clk 0:02:45.3]}
2... d5 {[%clk 0:03:00.4]} 3. Nc3 {[%clk 0:02:46.5]} 3... Nc6 {[%clk 0:03:00.5]}
4. Nf3 {[%clk 0:02:44.5]} 4... Nf6 {[%clk 0:03:00.9]} 5. Bd3 {[%clk 0:02:45.2]}
5... Bb4 {[%clk 0:02:59.6]} 6. O-O {[%clk 0:02:45.5]} 6... Bxc3 {[%clk 0:02:56]}
7. exd5 {[%clk 0:02:46.2]} 7... exd5 {[%clk 0:02:56]} 8. bxc3 {[%clk 0:02:46.6]}
8... O-O {[%clk 0:02:57]} 9. h3 {[%clk 0:02:47.1]} 9... Ne4 {[%clk 0:02:56.8]}
10. c4 {[%clk 0:02:44.5]} 10... f5 {[%clk 0:02:52.5]} 11. cxd5 {[%clk
0:02:44.3]} 11... Qxd5 {[%clk 0:02:52.1]} 12. c4 {[%clk 0:02:44.5]} 12... Qd6
{[%clk 0:02:50.1]} 13. d5 {[%clk 0:02:39.4]} 13... Ne5 {[%clk 0:02:50.7]} 14.
Bf4 {[%clk 0:02:36.9]} 14... Nxf3+ {[%clk 0:02:49.4]} 15. Qxf3 {[%clk
0:02:38.8]} 15... Qf6 {[%clk 0:02:45.9]} 16. Rfe1 {[%clk 0:02:23.8]} 16... c6
{[%clk 0:02:32.5]} 17. Rad1 {[%clk 0:02:11.5]} 17... cxd5 {[%clk 0:02:30.8]} 18.
cxd5 {[%clk 0:02:12.5]} 18... Bd7 {[%clk 0:02:23.2]} 19. d6 {[%clk 0:02:02]}
19... Bc6 {[%clk 0:02:19]} 20. Bc4+ {[%clk 0:02:02.3]} 20... Kh8 {[%clk
0:02:19.6]} 21. Qe3 {[%clk 0:01:58.1]} 21... g5 {[%clk 0:02:09.6]} 22. Bh2
{[%clk 0:01:58.6]} 22... f4 {[%clk 0:02:00.9]} 23. Qd4 {[%clk 0:01:53.7]} 23...
Qxd4 {[%clk 0:01:53]} 24. Rxd4 {[%clk 0:01:55.6]} 24... Rad8 {[%clk 0:01:53.2]}
25. Rdxe4 {[%clk 0:01:45.1]} 25... Bxe4 {[%clk 0:01:53.7]} 26. Rxe4 {[%clk
0:01:47]} 26... Rxd6 {[%clk 0:01:55.2]} 27. Re1 {[%clk 0:01:09]} 27... Rd4
{[%clk 0:01:50.8]} 28. Bf1 {[%clk 0:01:05.6]} 28... Rc8 {[%clk 0:01:45.4]} 29.
g3 {[%clk 0:00:57.6]} 29... Rc2 {[%clk 0:01:35.5]} 30. gxf4 {[%clk 0:00:58.6]}
30... gxf4 {[%clk 0:01:36.2]} 31. Re8+ {[%clk 0:00:50.4]} 31... Kg7 {[%clk
0:01:36.7]} 32. Re7+ {[%clk 0:00:51.7]} 32... Kg6 {[%clk 0:01:34.9]} 33. Bxf4
{[%clk 0:00:31.7]} 33... Rxf4 {[%clk 0:01:27.9]} 34. Bd3+ {[%clk 0:00:32.1]}
34... Kf6 {[%clk 0:01:29.2]} 35. Rxb7 {[%clk 0:00:20.8]} 35... Rcxf2 {[%clk
0:01:24]} 36. Rxa7 {[%clk 0:00:22.2]} 36... h5 {[%clk 0:01:19.7]} 37. Ra6+
{[%clk 0:00:21.9]} 37... Kg5 {[%clk 0:01:20.3]} 38. Ra5+ {[%clk 0:00:16.1]}
38... Kh6 {[%clk 0:00:59]} 39. Be2 {[%clk 0:00:15.4]} 39... Rxe2 {[%clk
0:00:58.7]} 0-1

[Event "*** Titled Tuesday 3|2 Blitz"]
[Site "Chess.com"]
[Date "2016.02.02"]
[Round "1"]
[White "amaidel"]
[Black "SidArun"]
[Result "1-0"]
[WhiteElo "2405"]
[BlackElo "2030"]
[TimeControl "180+2"]
[EndTime "11:08:15 PST"]
[Termination "amaidel won by resignation"]

1. e4 {[%clk 0:02:13.1]} 1... c6 {[%clk 0:02:46.9]} 2. d4 {[%clk 0:02:13.4]}
2... d5 {[%clk 0:02:48.1]} 3. exd5 {[%clk 0:02:13.5]} 3... cxd5 {[%clk
0:02:48.5]} 4. Nf3 {[%clk 0:02:15.1]} 4... Nc6 {[%clk 0:02:48.8]} 5. c4 {[%clk
0:02:15.6]} 5... Nf6 {[%clk 0:02:49.1]} 6. Nc3 {[%clk 0:02:15.9]} 6... e6 {[%clk
0:02:48.3]} 7. cxd5 {[%clk 0:02:16.9]} 7... exd5 {[%clk 0:02:48.5]} 8. Bb5
{[%clk 0:02:17.8]} 8... Bd6 {[%clk 0:02:47.8]} 9. O-O {[%clk 0:02:19]} 9... O-O
{[%clk 0:02:48.5]} 10. h3 {[%clk 0:02:19.5]} 10... a6 {[%clk 0:02:49]} 11. Bd3
{[%clk 0:02:20]} 11... h6 {[%clk 0:02:48.9]} 12. Re1 {[%clk 0:02:20.9]} 12... b5
{[%clk 0:02:47.8]} 13. a3 {[%clk 0:02:16.8]} 13... Qc7 {[%clk 0:02:40.8]} 14.
Be3 {[%clk 0:02:16.9]} 14... Be6 {[%clk 0:02:31]} 15. Rc1 {[%clk 0:02:17]} 15...
Qb7 {[%clk 0:02:31.9]} 16. Ne2 {[%clk 0:02:15]} 16... Rac8 {[%clk 0:02:32.1]}
17. Nf4 {[%clk 0:02:15.8]} 17... Bd7 {[%clk 0:02:19.6]} 18. Bb1 {[%clk
0:02:08.2]} 18... b4 {[%clk 0:02:07.2]} 19. Qd3 {[%clk 0:02:04.2]} 19... Ne7
{[%clk 0:01:55.1]} 20. Nh5 {[%clk 0:02:02.9]} 20... Ne4 {[%clk 0:01:54.4]} 21.
Nd2 {[%clk 0:01:58.5]} 21... Bf5 {[%clk 0:01:53.2]} 22. Nxe4 {[%clk 0:01:54.5]}
22... Bxe4 {[%clk 0:01:53.6]} 23. Qb3 {[%clk 0:01:55.4]} 23... Bxb1 {[%clk
0:01:49]} 24. Rxb1 {[%clk 0:01:55.8]} 24... a5 {[%clk 0:01:49]} 25. Bf4 {[%clk
0:01:54.5]} 25... Nf5 {[%clk 0:01:40.3]} 26. Bxd6 {[%clk 0:01:54.5]} 26... Nxd6
{[%clk 0:01:40.5]} 27. Nxg7 {[%clk 0:01:55.1]} 27... Kxg7 {[%clk 0:00:55.7]} 28.
Qg3+ {[%clk 0:01:55]} 28... Kh7 {[%clk 0:00:56.8]} 29. Qxd6 {[%clk 0:01:56.9]}
29... Rfe8 {[%clk 0:00:48.9]} 30. axb4 {[%clk 0:01:51.5]} 30... axb4 {[%clk
0:00:49.2]} 31. Re5 {[%clk 0:01:50.4]} 31... Rxe5 {[%clk 0:00:47]} 32. Qxe5
{[%clk 0:01:51.1]} 32... b3 {[%clk 0:00:42]} 33. Re1 {[%clk 0:01:49.7]} 33...
Qd7 {[%clk 0:00:41.7]} 34. Re3 {[%clk 0:01:48.6]} 34... Rc1+ {[%clk 0:00:34.4]}
35. Kh2 {[%clk 0:01:49.2]} 35... Rc2 {[%clk 0:00:35.4]} 36. Rg3 {[%clk 0:01:50]}
36... f5 {[%clk 0:00:25.6]} 37. Qf6 {[%clk 0:01:45.4]} 37... Rc6 {[%clk
0:00:25.8]} 38. Qf8 {[%clk 0:01:43.9]} 38... Rg6 {[%clk 0:00:24.7]} 39. Rxg6
{[%clk 0:01:41]} 39... Kxg6 {[%clk 0:00:25.8]} 40. Qg8+ {[%clk 0:01:42.2]} 40...
Kf6 {[%clk 0:00:27.2]} 41. Qg3 {[%clk 0:01:43]} 41... Qe6 {[%clk 0:00:26.6]} 42.
Qxb3 {[%clk 0:01:42.9]} 42... Qe4 {[%clk 0:00:26.6]} 43. Qe3 {[%clk 0:01:43.4]}
43... Qc2 {[%clk 0:00:24.8]} 44. Qxh6+ {[%clk 0:01:43.6]} 44... Ke7 {[%clk
0:00:24.5]} 45. Qe3+ {[%clk 0:01:44.2]} 45... Kf6 {[%clk 0:00:24.3]} 46. b4
{[%clk 0:01:45]} 46... Qb2 {[%clk 0:00:23.2]} 47. Qe5+ {[%clk 0:01:45]} 47...
Kg6 {[%clk 0:00:24.6]} 48. Qxd5 {[%clk 0:01:44.3]} 48... Qxb4 {[%clk 0:00:26.1]}
49. Qe5 {[%clk 0:01:43.5]} 49... Qd2 {[%clk 0:00:26.8]} 50. d5 {[%clk 0:01:43]}
50... f4 {[%clk 0:00:26.4]} 51. f3 {[%clk 0:01:37.5]} 1-0

[Event "*** Titled Tuesday 3|2 Blitz"]
[Site "Chess.com"]
[Date "2016.02.02"]
[Round "1"]
[White "Keranke"]
[Black "IMRosen"]
[Result "0-1"]
[WhiteElo "2524"]
[BlackElo "2238"]
[TimeControl "180+2"]
[EndTime "11:08:39 PST"]
[Termination "IMRosen won by resignation"]

1. d4 {[%clk 0:02:58.6]} 1... Nf6 {[%clk 0:02:55.6]} 2. c4 {[%clk 0:02:59.5]}
2... e5 {[%clk 0:02:53.1]} 3. dxe5 {[%clk 0:03:00.2]} 3... Ng4 {[%clk
0:02:53.9]} 4. Bf4 {[%clk 0:03:01]} 4... Bb4+ {[%clk 0:02:54.6]} 5. Nc3 {[%clk
0:03:01.6]} 5... Nc6 {[%clk 0:02:54.9]} 6. Nf3 {[%clk 0:03:01.7]} 6... Bxc3+
{[%clk 0:02:53.8]} 7. bxc3 {[%clk 0:03:03.6]} 7... Qe7 {[%clk 0:02:55.4]} 8. Qd5
{[%clk 0:03:04.2]} 8... Qa3 {[%clk 0:02:55.9]} 9. Qd2 {[%clk 0:03:04.5]} 9...
Qa5 {[%clk 0:02:52.7]} 10. e3 {[%clk 0:02:58.9]} 10... Ngxe5 {[%clk 0:02:53.7]}
11. Nxe5 {[%clk 0:02:54.8]} 11... Nxe5 {[%clk 0:02:55.6]} 12. Qd4 {[%clk
0:02:56.3]} 12... d6 {[%clk 0:02:52.4]} 13. c5 {[%clk 0:02:57.3]} 13... O-O
{[%clk 0:02:44.1]} 14. cxd6 {[%clk 0:02:56.5]} 14... cxd6 {[%clk 0:02:46]} 15.
Be2 {[%clk 0:02:53.2]} 15... Be6 {[%clk 0:02:04.4]} 16. O-O {[%clk 0:02:53]}
16... Rfd8 {[%clk 0:02:06]} 17. c4 {[%clk 0:02:48]} 17... Rac8 {[%clk
0:02:05.9]} 18. Rfc1 {[%clk 0:02:48.8]} 18... Qc5 {[%clk 0:01:53.9]} 19. Rab1
{[%clk 0:02:31.9]} 19... b6 {[%clk 0:01:53.3]} 20. Rb5 {[%clk 0:01:57.6]} 20...
Qxb5 {[%clk 0:01:51.5]} 21. cxb5 {[%clk 0:01:52.1]} 21... Rxc1+ {[%clk
0:01:53.4]} 22. Bf1 {[%clk 0:01:53.6]} 22... Bc4 {[%clk 0:01:49.3]} 23. h3
{[%clk 0:01:55]} 23... Rxf1+ {[%clk 0:01:41.7]} 24. Kh2 {[%clk 0:01:56.3]} 24...
Rc8 {[%clk 0:01:22.1]} 25. Qxd6 {[%clk 0:01:57.3]} 25... Ng6 {[%clk 0:01:18]}
26. Bg3 {[%clk 0:01:55.6]} 26... Be6 {[%clk 0:01:15]} 27. h4 {[%clk 0:01:49.3]}
27... h5 {[%clk 0:01:13]} 28. f3 {[%clk 0:01:25.6]} 28... Rcc1 {[%clk 0:01:06]}
29. Be5 {[%clk 0:01:23.2]} 29... Nxe5 {[%clk 0:01:02.1]} 30. Qxe5 {[%clk
0:01:16.1]} 30... Rc2 {[%clk 0:00:57]} 31. Qb8+ {[%clk 0:01:10.5]} 31... Kh7
{[%clk 0:00:57]} 32. Qxa7 {[%clk 0:01:10.7]} 32... Rff2 {[%clk 0:00:58.4]} 33.
Kg3 {[%clk 0:01:12.3]} 33... Rxg2+ {[%clk 0:00:58.5]} 34. Kf4 {[%clk 0:01:13.9]}
34... Rxa2 {[%clk 0:00:44.6]} 35. Qxb6 {[%clk 0:01:14]} 35... Ra4+ {[%clk
0:00:46.1]} 36. e4 {[%clk 0:01:15.3]} 36... Rb4 {[%clk 0:00:43.2]} 37. Qc5
{[%clk 0:01:16.4]} 37... Rgb2 {[%clk 0:00:43.6]} 38. Qxh5+ {[%clk 0:01:17.5]}
38... Kg8 {[%clk 0:00:45.2]} 39. Qe5 {[%clk 0:01:11.2]} 39... Rxb5 {[%clk
0:00:46]} 40. Qd4 {[%clk 0:01:12.6]} 40... Rh2 {[%clk 0:00:40.3]} 41. Kg3 {[%clk
0:01:10.1]} 41... Rh3+ {[%clk 0:00:40.6]} 42. Kf2 {[%clk 0:01:10.8]} 42... Rh5
{[%clk 0:00:37.7]} 43. f4 {[%clk 0:01:10.2]} 43... R5xh4 {[%clk 0:00:31.6]} 44.
f5 {[%clk 0:01:11.5]} 44... Rh2+ {[%clk 0:00:29.5]} 45. Kg1 {[%clk 0:01:10.3]}
45... Ba2 {[%clk 0:00:25.8]} 46. Qa4 {[%clk 0:01:04]} 46... Rd2 {[%clk
0:00:19.6]} 47. Qa5 {[%clk 0:00:58.4]} 47... Rg4+ {[%clk 0:00:19.6]} 48. Kf1
{[%clk 0:00:58.9]} 48... Bc4+ {[%clk 0:00:20]} 49. Ke1 {[%clk 0:01:00.2]} 49...
Re2+ {[%clk 0:00:21.3]} 50. Kd1 {[%clk 0:01:01.4]} 50... Rg1+ {[%clk 0:00:23]}
0-1